bitfinex/quotes_BTCUSD_20250825
["timestamp","ask_amount","ask_price","bid_price","bid_amount"]
[1756146847192,0.03329612,112760.0,112750.0,0.33375359]
[1756146847407,4.90754812,112760.0,112750.0,0.33575359]
[1756146847625,0.18624728,112770.0,112760.0,0.17736786]
[1756146847845,0.18624728,112770.0,112760.0,0.18237786]
[1756146847846,0.23605344,112770.0,112760.0,0.18237786]
[1756146848061,0.04980616,112770.0,112760.0,0.18237786]
[1756146848285,0.03319399,112770.0,112760.0,0.18237786]
[1756146848511,0.5440084,112780.0,112770.0,0.17735213]
[1756146848719,0.23450039,112780.0,112770.0,0.33372213]
[1756146848916,0.20782839,112780.0,112770.0,0.15637]
[1756146849121,0.19319976,112780.0,112760.0,0.24862786]
[1756146849334,0.17735213,112770.0,112760.0,0.24862786]
[1756146849541,0.21064672,112770.0,112760.0,0.40197786]
[1756146850418,0.21064672,112770.0,112760.0,0.07325]
[1756146850591,0.21262672,112770.0,112760.0,0.22761]
[1756146850824,0.21262672,112770.0,112760.0,0.22461]
[1756146851033,0.21262672,112770.0,112760.0,0.40197786]
[1756146851241,0.21064672,112770.0,112760.0,0.07725]
[1756146851445,0.21064672,112770.0,112760.0,0.07925]
[1756146851659,0.21064672,112770.0,112760.0,0.40797786]
[1756146851869,0.21064672,112770.0,112760.0,0.07925]
[1756146852091,0.21064672,112770.0,112760.0,0.40797786]
[1756146854446,0.03329459,112770.0,112760.0,0.40797786]
[1756146854929,1.03770398,112780.0,112760.0,0.40797786]
[1756146855156,1.03770398,112780.0,112770.0,0.00302]
[1756146855385,1.03968398,112780.0,112770.0,0.00501]
[1756146855621,0.1773364,112780.0,112770.0,0.18236213]
[1756146855854,1.03770398,112780.0,112770.0,0.18236213]
[1756146856303,1.03770398,112780.0,112770.0,0.00801]
[1756146856533,1.038979,112780.0,112770.0,0.003]
[1756146856758,1.038979,112780.0,112770.0,0.15432]
[1756146856967,1.038979,112780.0,112770.0,0.15933]
[1756146857196,1.06705874,112780.0,112770.0,0.15432]
[1756146857423,1.15256928,112780.0,112770.0,0.003]
[1756146857644,6.30034013,112780.0,112770.0,0.005]
[1756146857867,6.32701313,112780.0,112770.0,0.005]
[1756146858115,6.33530843,112780.0,112770.0,0.005]
[1756146858818,6.33530843,112780.0,112770.0,0.002]
[1756146859046,6.33530843,112780.0,112770.0,0.003]
[1756146859277,6.33530843,112780.0,112770.0,0.001]
[1756146859507,6.33530843,112780.0,112770.0,0.002]
[1756146860174,6.42217808,112780.0,112770.0,0.002]
[1756146862712,6.33530843,112780.0,112770.0,0.002]
[1756146862917,6.33286843,112780.0,112770.0,0.002]
[1756146863129,6.48414843,112780.0,112770.0,0.002]
[1756146864056,6.33286843,112780.0,112770.0,0.002]
[1756146864274,6.48414843,112780.0,112770.0,0.002]
[1756146864938,6.47588522,112780.0,112770.0,0.00399]
[1756146865171,5.47056838,112780.0,112770.0,0.00701]
[1756146865412,5.48445207,112780.0,112770.0,0.00701]
[1756146865629,6.34923018,112780.0,112770.0,0.002]
[1756146867993,6.50051018,112780.0,112770.0,0.002]
[1756146869566,6.49808018,112780.0,112770.0,0.002]
[1756146870267,6.34680018,112780.0,112770.0,0.002]
[1756146870436,6.49808018,112780.0,112770.0,0.002]
[1756146870777,6.56522253,112780.0,112770.0,0.002]
[1756146871345,6.50050018,112780.0,112770.0,0.002]
[1756146871616,6.34922018,112780.0,112770.0,0.002]
[1756146871760,0.17738285,112760.0,112740.0,0.47689049]
[1756146872124,0.17738285,112760.0,112750.0,0.17948359]
[1756146872335,0.17738285,112760.0,112750.0,0.00527]
[1756146872536,0.1912673,112760.0,112750.0,0.00527]
[1756146873168,1.05163488,112760.0,112750.0,0.00527]
[1756146873407,1.06826553,112760.0,112750.0,0.15655]
[1756146873806,1.05438108,112760.0,112750.0,0.15655]
[1756146874480,1.05438108,112760.0,112750.0,0.00527]
[1756146874737,1.05438259,112760.0,112750.0,0.00727]
[1756146875225,1.05438259,112760.0,112750.0,0.01027]
[1756146875717,0.19401501,112760.0,112750.0,0.01027]
[1756146877112,0.20789928,112760.0,112750.0,0.01027]
[1756146877728,1.05630723,112770.0,112750.0,0.01027]
[1756146877953,1.07850917,112770.0,112750.0,0.01027]
[1756146878159,0.17738285,112760.0,112750.0,0.01027]
[1756146878584,0.17945285,112760.0,112750.0,0.00827]
[1756146878791,0.17945285,112760.0,112750.0,0.15955]
[1756146878792,1.03982043,112760.0,112750.0,0.15955]
[1756146879004,1.03982043,112760.0,112750.0,0.16055]
[1756146879714,0.17945285,112760.0,112750.0,0.004]
[1756146879923,1.07481481,112760.0,112750.0,0.004]
[1756146880129,1.07715481,112760.0,112750.0,0.004]
[1756146880341,1.07715481,112760.0,112750.0,0.003]
[1756146880765,1.07481481,112760.0,112750.0,0.005]
[1756146881004,1.22605481,112760.0,112750.0,0.002]
[1756146881215,0.17738359,112750.0,112740.0,0.22265]
[1756146881436,1.03775117,112750.0,112740.0,0.22475]
[1756146881653,0.17738359,112750.0,112740.0,0.40214932]
[1756146881875,0.01388529,112750.0,112740.0,0.40214932]
[1756146882090,0.01388529,112750.0,112740.0,1.2625169]
[1756146882531,0.20405029,112760.0,112750.0,0.17738359]
[1756146882532,0.026676,112760.0,112750.0,0.17738359]
[1756146882756,0.20404386,112760.0,112750.0,0.17948359]
[1756146882973,0.20404386,112760.0,112750.0,0.00527]
[1756146883200,0.17736786,112760.0,112750.0,0.00527]
[1756146883898,0.17934786,112760.0,112750.0,0.00527]
[1756146884333,0.17736786,112760.0,112750.0,0.15751]
[1756146884544,0.17736786,112760.0,112750.0,0.15851]
[1756146885429,0.17736786,112760.0,112750.0,0.33589359]
[1756146885644,0.17736786,112760.0,112750.0,0.15851]
[1756146885859,0.19125222,112760.0,112750.0,0.18465359]
[1756146886072,0.19125222,112760.0,112750.0,0.00727]
[1756146886321,0.19125222,112760.0,112750.0,0.15851]
[1756146887591,0.19125222,112760.0,112750.0,0.00727]
[1756146887824,1.0535998,112760.0,112750.0,0.15324]
[1756146889641,1.07025129,112760.0,112750.0,0.15324]
[1756146889838,1.07025129,112760.0,112750.0,0.15434]
[1756146890067,1.07025129,112760.0,112750.0,0.15951]
[1756146890491,1.07025129,112760.0,112750.0,0.15424]
[1756146890694,1.0702515,112760.0,112750.0,0.15424]
[1756146891329,1.0969255,112760.0,112750.0,0.15324]
[1756146891537,0.23655792,112760.0,112750.0,0.16051]
[1756146891754,1.0969255,112760.0,112750.0,0.16051]
[1756146892199,1.08304114,112760.0,112750.0,0.16051]
[1756146892665,1.09136719,112760.0,112750.0,0.16051]
[1756146893080,1.08106114,112760.0,112750.0,0.16051]
[1756146893290,1.08304114,112760.0,112750.0,0.16051]
[1756146893497,0.22267356,112760.0,112750.0,0.16051]
[1756146893920,0.19599988,112760.0,112750.0,0.16051]
[1756146894131,1.09136756,112760.0,112750.0,0.16051]
[1756146894530,1.09136739,112760.0,112750.0,0.16051]
[1756146895420,1.10525223,112760.0,112750.0,0.16051]
[1756146895643,1.10525223,112760.0,112750.0,0.15524]
[1756146896058,1.10525223,112760.0,112750.0,0.15836]
[1756146896272,1.10525223,112760.0,112750.0,0.15524]
[1756146897216,1.10525246,112760.0,112750.0,0.15524]
[1756146897634,1.10525246,112760.0,112750.0,0.15836]
[1756146897842,1.10525246,112760.0,112750.0,0.16046]
[1756146898467,1.10525246,112760.0,112750.0,0.15524]
[1756146899342,1.10525246,112760.0,112750.0,0.004]
[1756146899554,1.10525246,112760.0,112750.0,0.15524]
[1756146899761,1.10525246,112760.0,112750.0,0.15836]
[1756146899970,1.10525246,112760.0,112750.0,0.16046]
[1756146900851,1.10768246,112760.0,112750.0,0.15524]
[1756146901073,1.25888246,112760.0,112750.0,0.004]
[1756146901290,6.13313446,112760.0,112750.0,0.004]
[1756146901516,5.25888204,112760.0,112750.0,0.004]
[1756146901735,6.11681962,112760.0,112750.0,0.004]
[1756146902405,6.11924962,112760.0,112750.0,0.004]
[1756146902749,6.09427144,112760.0,112750.0,0.002]
[1756146902994,0.17738359,112750.0,112740.0,0.07136]
[1756146903288,5.92865289,112750.0,112740.0,0.15642]
[1756146903522,1.05440089,112750.0,112740.0,0.15642]
[1756146904432,1.05440089,112750.0,112740.0,0.15742]
[1756146904640,1.05637089,112750.0,112740.0,0.00622]
[1756146904852,1.05637089,112750.0,112740.0,0.1522]
[1756146905061,1.05637089,112750.0,112740.0,0.15742]
[1756146905517,1.05637089,112750.0,112740.0,0.00822]
[1756146905705,1.05637089,112750.0,112740.0,0.1542]
[1756146905920,1.05637089,112750.0,112740.0,0.003]
[1756146906131,1.05880089,112750.0,112740.0,0.003]
[1756146906343,1.06712403,112750.0,112740.0,0.003]
[1756146906558,1.09380203,112750.0,112740.0,0.003]
[1756146907022,1.24500203,112750.0,112740.0,0.003]
[1756146907236,6.45925403,112750.0,112740.0,0.003]
[1756146907963,6.47314099,112750.0,112740.0,0.003]
[1756146908651,6.47938063,112750.0,112740.0,0.001]
[1756146908877,6.47938063,112750.0,112740.0,0.002]
[1756146909114,6.47938063,112750.0,112740.0,0.001]
[1756146909622,6.47935679,112750.0,112740.0,0.001]
[1756146910104,6.58538623,112750.0,112740.0,0.001]
[1756146910323,6.58538623,112750.0,112720.0,0.06864]
[1756146910324,0.51741506,112730.0,112720.0,0.0004]
[1756146910539,0.51741506,112730.0,112720.0,0.00048499]
[1756146910540,1.39639532,112730.0,112720.0,0.00048499]
[1756146910761,7.14175799,112730.0,112720.0,0.00048499]
[1756146910982,7.34503351,112730.0,112720.0,0.00048499]
[1756146911169,7.24383317,112730.0,112720.0,0.00048499]
[1756146911414,7.35892357,112730.0,112720.0,0.00048499]
[1756146912024,7.35892357,112730.0,112720.0,0.00148499]
[1756146912278,7.35892357,112730.0,112720.0,0.00048499]
[1756146912279,7.34503351,112730.0,112720.0,0.00048499]
[1756146912494,7.325881,112730.0,112720.0,0.00048499]
[1756146912709,7.327881,112730.0,112720.0,0.00048499]
[1756146912939,7.1766236,112730.0,112720.0,0.00048499]
[1756146913153,7.3278236,112730.0,112720.0,0.00048499]
[1756146913367,7.3288236,112730.0,112720.0,0.00048499]
[1756146913575,7.32881909,112730.0,112720.0,0.00048499]
[1756146913796,7.17761909,112730.0,112720.0,0.00048499]
[1756146914022,7.32881909,112730.0,112720.0,0.00048499]
[1756146915196,7.32259442,112730.0,112720.0,0.00048499]
[1756146915400,7.33648542,112730.0,112720.0,0.00048499]
[1756146916666,7.18528542,112730.0,112720.0,0.00048499]
[1756146916871,6.47368784,112730.0,112720.0,0.00048499]
[1756146917864,5.46212026,112730.0,112720.0,0.00258499]
[1756146918068,6.47368784,112730.0,112720.0,0.00048499]
[1756146919510,6.47372784,112730.0,112720.0,0.00048499]
[1756146919717,6.47372784,112730.0,112720.0,0.00258499]
[1756146919924,6.47174784,112730.0,112720.0,0.00570499]
[1756146921157,6.32050784,112730.0,112720.0,0.00570499]
[1756146921521,6.47174784,112730.0,112720.0,0.00570499]
[1756146921856,6.46974784,112730.0,112720.0,0.00570499]
[1756146922402,6.47174784,112730.0,112720.0,0.00570499]
[1756146922612,6.46870369,112730.0,112720.0,0.00570499]
[1756146922825,6.46970369,112730.0,112720.0,0.00570499]
[1756146923249,6.46870367,112730.0,112720.0,0.00570499]
[1756146923475,6.47084367,112730.0,112720.0,0.00048499]
[1756146923701,6.55771332,112730.0,112720.0,0.00048499]
[1756146924013,6.45695267,112730.0,112720.0,0.00048499]
[1756146924731,6.25632428,112730.0,112720.0,0.00048499]
[1756146924940,6.43373934,112730.0,112720.0,0.00048499]
[1756146925115,6.43405934,112730.0,112720.0,0.00048499]
[1756146925530,7.29442692,112730.0,112720.0,0.00048499]
[1756146925674,6.41749266,112730.0,112720.0,0.00048499]
[1756146926052,6.5023461,112730.0,112720.0,0.00048499]
[1756146927149,6.51591641,112730.0,112720.0,0.00048499]
[1756146928221,5.50430883,112730.0,112720.0,0.00570499]
[1756146928432,6.36253641,112730.0,112720.0,0.00570499]
[1756146928657,6.51373641,112730.0,112720.0,0.00570499]
[1756146928875,6.29425641,112730.0,112720.0,0.00570499]
[1756146929086,6.44546485,112730.0,112720.0,0.00570499]
[1756146929714,6.29426485,112730.0,112720.0,0.00570499]
[1756146930160,1.57121285,112730.0,112720.0,0.00570499]
[1756146931519,1.57121285,112730.0,112720.0,0.00048499]
[1756146931520,1.62324483,112730.0,112720.0,0.00048499]
[1756146931749,1.57319285,112730.0,112720.0,0.00048499]
[1756146932129,1.54832762,112730.0,112720.0,0.00570499]
[1756146932363,1.57322336,112730.0,112720.0,0.00570499]
[1756146932603,1.57124336,112730.0,112720.0,0.00570499]
[1756146932742,0.71087578,112730.0,112720.0,0.00570499]
[1756146932948,0.39409031,112730.0,112720.0,0.00570499]
[1756146933455,1.25445789,112730.0,112720.0,0.00570499]
[1756146933669,0.39605031,112730.0,112720.0,0.00260499]
[1756146933882,1.25445789,112730.0,112720.0,0.00570499]
[1756146934431,1.24056758,112730.0,112720.0,0.00570499]
[1756146935059,0.3802,112730.0,112720.0,0.00570499]
[1756146935244,1.24056758,112730.0,112720.0,0.00570499]
[1756146935700,1.24252758,112730.0,112720.0,0.00570499]
[1756146935916,1.24056758,112730.0,112720.0,0.00570499]
[1756146937507,0.3802,112730.0,112720.0,0.00570499]
[1756146938376,0.3802,112730.0,112720.0,0.18313579]
[1756146938627,0.3802,112730.0,112720.0,0.00570499]
[1756146938877,0.229,112730.0,112720.0,0.00570499]
[1756146939098,0.229,112730.0,112720.0,0.18313579]
[1756146941222,0.05158494,112730.0,112720.0,0.18313579]
[1756146941451,0.229,112730.0,112720.0,0.18313579]
[1756146941887,0.22905211,112730.0,112720.0,0.18313579]
[1756146942102,0.22905187,112730.0,112720.0,0.00570499]
[1756146942804,0.22905187,112730.0,112720.0,0.18313579]
[1756146943029,0.22905187,112730.0,112720.0,0.00570499]
[1756146943030,0.20236387,112730.0,112720.0,0.00570499]
[1756146943240,1.06273145,112730.0,112720.0,0.00570499]
[1756146943871,0.20236387,112730.0,112720.0,0.00570499]
[1756146945145,0.20236387,112730.0,112720.0,0.00770499]
[1756146946687,0.54236387,112730.0,112720.0,0.00770499]
[1756146946904,1.40471145,112730.0,112720.0,0.00248499]
[1756146947111,1.40471145,112730.0,112720.0,0.00460499]
[1756146947319,1.40471145,112730.0,112720.0,0.00770499]
[1756146947523,1.40471145,112730.0,112720.0,0.00248499]
[1756146948183,1.55587145,112730.0,112720.0,0.00770499]
[1756146948393,1.55389145,112730.0,112720.0,0.00570499]
[1756146948785,1.55389145,112730.0,112720.0,0.00770499]
[1756146949222,1.55389145,112730.0,112720.0,0.00570499]
[1756146949431,1.55587145,112730.0,112720.0,0.00248499]
[1756146950953,1.56976039,112730.0,112720.0,0.00248499]
[1756146951602,1.57220876,112730.0,112720.0,0.00248499]
[1756146951823,6.44646076,112730.0,112720.0,0.00248499]
[1756146952040,6.45270056,112730.0,112720.0,0.00248499]
[1756146952254,6.43881401,112730.0,112720.0,0.00248499]
[1756146952467,6.43257414,112730.0,112720.0,0.00048499]
[1756146952655,6.45798352,112730.0,112720.0,0.00148499]
[1756146952934,6.30682352,112730.0,112720.0,0.00148499]
[1756146953149,6.45794352,112730.0,112720.0,0.00148499]
[1756146954276,6.30438352,112730.0,112720.0,0.00048499]
[1756146954489,6.4363343,112730.0,112720.0,0.00148499]
[1756146954915,6.4363343,112730.0,112720.0,0.00360499]
[1756146955128,6.4363343,112730.0,112720.0,0.00670499]
[1756146955339,6.45022376,112730.0,112720.0,0.00670499]
[1756146956185,6.4439836,112730.0,112720.0,0.00670499]
[1756146956406,5.58361602,112730.0,112720.0,0.00670499]
[1756146956615,5.58163602,112730.0,112720.0,0.00670499]
[1756146956825,6.4420036,112730.0,112720.0,0.00670499]
[1756146957613,5.58163602,112730.0,112720.0,0.00670499]
[1756146957898,6.4420036,112730.0,112720.0,0.00670499]
[1756146958306,6.53132325,112730.0,112720.0,0.00148499]
[1756146958527,6.38644556,112730.0,112720.0,0.00148499]
[1756146958733,6.53756556,112730.0,112720.0,0.00148499]
[1756146959539,0.01160375,112700.0,112690.0,0.2691]
[1756146959749,0.01160375,112700.0,112690.0,0.00087922]
[1756146959750,1.40804328,112700.0,112690.0,0.00087922]
[1756146960176,1.41683857,112700.0,112690.0,0.00087922]
[1756146960385,1.43073083,112700.0,112690.0,0.00087922]
[1756146960607,1.41683857,112700.0,112690.0,0.00087922]
[1756146960817,1.41683857,112700.0,112690.0,0.00287922]
[1756146961030,6.37714458,112700.0,112690.0,0.00287922]
[1756146961233,6.32149599,112700.0,112690.0,0.00087922]
[1756146961444,6.47261599,112700.0,112690.0,0.00087922]
[1756146961651,6.47261631,112700.0,112690.0,0.00087922]
[1756146962095,6.46637187,112700.0,112690.0,0.00087922]
[1756146963396,6.4413941,112700.0,112690.0,0.00087922]
[1756146963622,6.46634759,112700.0,112690.0,0.00087922]
[1756146964237,6.45802976,112700.0,112690.0,0.00087922]
[1756146965526,6.44642601,112700.0,112690.0,0.00087922]
[1756146966184,6.29483601,112700.0,112690.0,0.00087922]
[1756146966393,6.44595601,112700.0,112690.0,0.00087922]
[1756146966603,6.29483601,112700.0,112690.0,0.00087922]
[1756146966813,6.44595601,112700.0,112690.0,0.00087922]
[1756146968288,6.29286601,112700.0,112690.0,0.00583922]
[1756146968504,6.44398601,112700.0,112690.0,0.00583922]
[1756146970116,6.29282458,112700.0,112690.0,0.00583922]
[1756146970538,5.432457,112700.0,112690.0,0.00583922]
[1756146971255,6.29282458,112700.0,112690.0,0.00583922]
[1756146971463,6.37969423,112700.0,112690.0,0.00583922]
[1756146972317,6.53279423,112700.0,112690.0,0.00087922]
[1756146972750,6.53279423,112700.0,112690.0,0.00583922]
[1756146973219,6.53279442,112700.0,112690.0,0.00087922]
[1756146973906,6.44592477,112700.0,112690.0,0.00087922]
[1756146975628,6.44836477,112700.0,112690.0,0.00087922]
[1756146976083,1.37784561,112690.0,112680.0,0.00306884]
[1756146976298,6.41981203,112690.0,112680.0,0.00512673]
[1756146976510,1.54556003,112690.0,112680.0,0.00512673]
[1756146978064,1.55945325,112690.0,112680.0,0.00512673]
[1756146979463,1.54285883,112690.0,112680.0,0.00512673]
[1756146979672,1.55946653,112690.0,112680.0,0.00512673]
[1756146980532,1.55947071,112690.0,112680.0,0.00512673]
[1756146981175,0.69910313,112690.0,112680.0,0.00512673]
[1756146981399,1.56146071,112690.0,112680.0,0.00217673]
[1756146981609,1.56146071,112690.0,112680.0,0.00512673]
[1756146981951,1.55947071,112690.0,112680.0,0.00512673]
[1756146982854,1.56145071,112690.0,112680.0,0.00016673]
[1756146983608,1.56145071,112690.0,112680.0,0.00512673]
[1756146983839,1.55947071,112690.0,112680.0,0.00512673]
[1756146984064,0.54798313,112690.0,112680.0,0.00512673]
[1756146984287,0.54798313,112690.0,112680.0,0.18262051]
[1756146984761,0.54798313,112690.0,112680.0,0.00512673]
[1756146985485,0.54798313,112690.0,112680.0,0.18262051]
[1756146985909,0.54798313,112690.0,112680.0,0.00408239]
[1756146986137,0.54799806,112690.0,112680.0,0.18379484]
[1756146986359,0.54799806,112690.0,112680.0,0.17749378]
[1756146986499,0.31842383,112680.0,112670.0,1.18935683]
[1756146986710,0.49591761,112680.0,112670.0,1.1914348]
[1756146986909,0.51254928,112680.0,112670.0,0.17998722]
[1756146987137,0.51254928,112680.0,112670.0,0.15355797]
[1756146987344,0.51254928,112680.0,112670.0,0.00247797]
[1756146987542,0.51254928,112680.0,112670.0,0.15355797]
[1756146987942,1.37494686,112680.0,112670.0,0.00247797]
[1756146988227,1.80480651,112680.0,112670.0,0.00044797]
[1756146988429,1.86901686,112680.0,112670.0,0.00044797]
[1756146988614,1.86901686,112680.0,112670.0,0.00144797]
[1756146989311,6.72663719,112680.0,112670.0,0.00144797]
[1756146989540,6.75788487,112680.0,112670.0,0.00144797]
[1756146990009,6.75788145,112680.0,112670.0,0.00044797]
[1756146990469,6.75788145,112680.0,112670.0,0.00144797]
[1756146990470,7.64862863,112680.0,112670.0,0.00144797]
[1756146990716,7.61824903,112680.0,112670.0,0.00044797]
[1756146991422,6.75788145,112680.0,112670.0,0.00044797]
[1756146992118,6.77177737,112680.0,112670.0,0.00044797]
[1756146992331,6.77277737,112680.0,112670.0,0.00044797]
[1756146992569,6.62169737,112680.0,112670.0,0.00044797]
[1756146992794,6.77277737,112680.0,112670.0,0.00044797]
[1756146993238,6.77377737,112680.0,112670.0,0.00044797]
[1756146993507,6.75988145,112680.0,112670.0,0.00044797]
[1756146995098,6.75363539,112680.0,112670.0,0.00044797]
[1756146995312,6.60255539,112680.0,112670.0,0.00044797]
[1756146995529,5.89326781,112680.0,112670.0,0.00044797]
[1756146995703,6.75359721,112680.0,112670.0,0.00044797]
[1756146995922,0.17752529,112660.0,112650.0,0.18974559]
[1756146996141,0.01662735,112660.0,112650.0,1.12337261]
[1756146996301,0.01662735,112660.0,112650.0,0.26300503]
[1756146996935,0.19415264,112660.0,112650.0,0.25412856]
[1756146997145,0.19415264,112660.0,112650.0,0.18302693]
[1756146997308,0.19415264,112660.0,112650.0,0.18402693]
[1756146997536,0.19415264,112660.0,112650.0,0.18302693]
[1756146998065,0.19415264,112660.0,112650.0,0.18502693]
[1756146998822,0.19414709,112660.0,112650.0,0.18502693]
[1756146999304,0.0166218,112660.0,112650.0,0.18502693]
[1756146999657,0.19414709,112660.0,112650.0,0.18502693]
[1756146999853,0.19414709,112660.0,112650.0,0.33610693]
[1756147000780,0.19414709,112660.0,112650.0,0.33710693]
[1756147000983,0.0166218,112660.0,112650.0,0.33710693]
[1756147001215,0.0166218,112660.0,112650.0,0.00848588]
[1756147001427,0.19414709,112660.0,112650.0,0.00848588]
[1756147001583,0.19414709,112660.0,112650.0,0.18602693]
[1756147002414,0.0166218,112660.0,112650.0,0.18602693]
[1756147002641,0.19414709,112660.0,112650.0,0.18602693]
[1756147004684,0.19414709,112660.0,112650.0,0.18300693]
[1756147004897,0.19414709,112660.0,112650.0,0.18602693]
[1756147005101,0.20804293,112660.0,112650.0,0.18602693]
[1756147005326,0.20804293,112660.0,112650.0,0.33710693]
[1756147005968,0.20804293,112660.0,112650.0,0.3362175]
[1756147006646,0.03051764,112660.0,112650.0,0.3362175]
[1756147007630,0.20804293,112660.0,112650.0,0.3362175]
[1756147008653,0.20804326,112660.0,112650.0,0.3362175]
[1756147009109,0.20804326,112660.0,112650.0,0.1851375]
[1756147009308,0.20804326,112660.0,112650.0,0.3361775]
[1756147009732,0.21007326,112660.0,112650.0,0.1821175]
[1756147009964,0.21306326,112660.0,112650.0,0.1745478]
[1756147010175,0.17754105,112650.0,112640.0,0.39726442]
[1756147010383,0.17957105,112650.0,112640.0,0.39734951]
[1756147010596,0.18256105,112650.0,112640.0,0.39937951]
[1756147010834,1.04292863,112650.0,112640.0,0.00048509]
[1756147011041,1.04292863,112650.0,112640.0,0.15152509]
[1756147011380,1.0638014,112650.0,112640.0,0.15152509]
[1756147011595,1.0638014,112650.0,112640.0,0.00248509]
[1756147011793,1.42042096,112650.0,112640.0,0.00248509]
[1756147012398,0.56005338,112650.0,112640.0,0.00248509]
[1756147012618,5.43429908,112650.0,112640.0,0.00248509]
[1756147012830,6.29466666,112650.0,112640.0,0.00048509]
[1756147013427,6.38153631,112650.0,112640.0,0.00048509]
[1756147013690,6.29766666,112650.0,112640.0,0.00048509]
[1756147014584,6.29966666,112650.0,112640.0,0.00048509]
[1756147014794,6.3300584,112650.0,112640.0,0.00048509]
[1756147015212,6.29966666,112650.0,112640.0,0.00048509]
[1756147015443,6.31356633,112650.0,112640.0,0.00048509]
[1756147015859,6.40043598,112650.0,112640.0,0.00048509]
[1756147016270,6.31356633,112650.0,112640.0,0.00048509]
[1756147017106,5.60423875,112650.0,112640.0,0.00048509]
[1756147017315,6.46460633,112650.0,112640.0,0.00048509]
[1756147018794,6.31356633,112650.0,112640.0,0.00048509]
[1756147018997,6.46458723,112650.0,112640.0,0.00048509]
[1756147019406,6.31354723,112650.0,112640.0,0.00048509]
[1756147019606,6.46458723,112650.0,112640.0,0.00048509]
[1756147019991,6.47878774,112650.0,112640.0,0.00048509]
[1756147020194,6.31354723,112650.0,112640.0,0.00048509]
[1756147020395,6.46462723,112650.0,112640.0,0.00048509]
[1756147020597,6.31354723,112650.0,112640.0,0.00048509]
[1756147020842,6.31354723,112650.0,112640.0,0.00253509]
[1756147020974,6.46458723,112650.0,112640.0,0.00048509]
[1756147021616,6.55145688,112650.0,112640.0,0.00048509]
[1756147021832,6.54645688,112650.0,112640.0,0.00048509]
[1756147022269,6.46158723,112650.0,112640.0,0.00048509]
[1756147023104,5.45017965,112650.0,112640.0,0.00048509]
[1756147023313,0.51755681,112640.0,112620.0,0.19836809]
[1756147023540,0.17757258,112630.0,112620.0,0.19836809]
[1756147023753,0.19416348,112630.0,112620.0,0.19009868]
[1756147024397,0.2080634,112630.0,112620.0,0.19009868]
[1756147024610,0.03049082,112630.0,112620.0,0.19009868]
[1756147024827,0.0165909,112630.0,112620.0,0.19009868]
[1756147025051,0.51755719,112640.0,112620.0,1.03956577]
[1756147025270,0.17757258,112630.0,112620.0,0.18019819]
[1756147025490,0.17757258,112630.0,112620.0,0.33147819]
[1756147025706,0.51755719,112640.0,112620.0,0.33147819]
[1756147025927,0.53414678,112640.0,112620.0,0.33147819]
[1756147026204,0.53414678,112640.0,112620.0,0.33047819]
[1756147026205,0.17757258,112630.0,112620.0,0.33047819]
[1756147026623,0.17757258,112630.0,112620.0,0.32947819]
[1756147026836,0.19416242,112630.0,112620.0,0.32947819]
[1756147027582,0.19416358,112630.0,112620.0,0.33147819]
[1756147027984,0.01389982,112630.0,112620.0,0.33147819]
[1756147028343,0.01389982,112630.0,112620.0,0.33185819]
[1756147028550,0.01389982,112630.0,112620.0,1.19222577]
[1756147028785,0.01389982,112630.0,112620.0,1.29655954]
[1756147029244,0.35798704,112650.0,112640.0,0.17755681]
[1756147029470,0.19413794,112650.0,112640.0,0.32948681]
[1756147030074,0.01659689,112650.0,112640.0,0.32948681]
[1756147030308,0.19413794,112650.0,112640.0,0.32948681]
[1756147030552,0.19513794,112650.0,112640.0,0.32948681]
[1756147030774,0.19613794,112650.0,112640.0,0.32948681]
[1756147031001,0.19614038,112650.0,112640.0,0.32948681]
[1756147031188,0.19614038,112650.0,112640.0,0.32952681]
[1756147031814,0.03920751,112650.0,112640.0,1.19027439]
[1756147032026,0.01859933,112650.0,112640.0,1.18989439]
[1756147032230,0.01860385,112650.0,112640.0,0.32952681]
[1756147032663,0.01760385,112650.0,112640.0,1.03853439]
[1756147032935,0.21650814,112650.0,112640.0,0.17816681]
[1756147033149,0.1951449,112650.0,112640.0,0.32964681]
[1756147033497,0.1951449,112650.0,112640.0,0.17816681]
[1756147033829,0.1951449,112650.0,112640.0,0.33460681]
[1756147034637,0.1951449,112650.0,112640.0,0.33456681]
[1756147035063,0.5351449,112650.0,112640.0,0.33456681]
[1756147035277,0.52160105,112650.0,112640.0,0.33456681]
[1756147035487,0.3576094,112650.0,112640.0,0.33456681]
[1756147035918,0.001,112650.0,112640.0,1.19493439]
[1756147036125,0.001,112650.0,112640.0,1.19531439]
[1756147036362,0.001,112650.0,112640.0,0.33498681]
[1756147036570,0.001,112650.0,112640.0,1.19535439]
[1756147036751,0.001,112650.0,112640.0,1.26367439]
[1756147037950,0.001,112650.0,112640.0,1.26325439]
[1756147038763,0.01489707,112650.0,112640.0,1.11185439]
[1756147038986,0.01489707,112650.0,112640.0,1.26317439]
[1756147039183,0.01489707,112650.0,112640.0,0.40280681]
[1756147039875,0.01795707,112650.0,112640.0,0.40284681]
[1756147040536,0.01795707,112650.0,112640.0,0.25148681]
[1756147040742,0.01795707,112650.0,112640.0,0.40280681]
[1756147041578,0.01489707,112650.0,112640.0,0.40280681]
[1756147042156,0.001,112650.0,112640.0,0.40280681]
[1756147044153,0.001,112650.0,112640.0,1.26317439]
[1756147044363,0.001,112650.0,112640.0,0.40280681]
[1756147044815,0.001,112650.0,112640.0,1.26317439]
[1756147045268,0.001,112650.0,112640.0,0.25148681]
[1756147045474,0.001,112650.0,112640.0,0.40268681]
[1756147045690,0.001,112650.0,112640.0,1.11185439]
[1756147045935,0.001,112650.0,112640.0,0.67138681]
[1756147046369,0.001,112650.0,112640.0,0.52018681]
[1756147046583,0.00413,112650.0,112640.0,0.67138681]
[1756147047012,0.001,112650.0,112640.0,0.67138681]
[1756147047231,0.01489739,112650.0,112640.0,0.67138681]
[1756147048099,0.01802739,112650.0,112640.0,0.67138681]
[1756147048410,0.17752635,112660.0,112640.0,0.67138681]
[1756147048656,0.17752635,112660.0,112650.0,0.17754105]
[1756147048865,0.17752529,112660.0,112650.0,0.17961105]
[1756147049322,0.17962529,112660.0,112650.0,0.17961105]
[1756147049963,0.17962529,112660.0,112650.0,0.18061105]
[1756147050322,0.19587301,112670.0,112660.0,0.17752529]
[1756147050522,0.19587301,112670.0,112660.0,1.19406287]
[1756147050523,0.00014353,112670.0,112660.0,1.19406287]
[1756147051501,0.00014353,112670.0,112660.0,1.29839664]
[1756147051708,0.00014353,112670.0,112660.0,0.43802906]
[1756147051877,0.00014353,112670.0,112660.0,1.14731664]
[1756147052085,0.00014353,112670.0,112660.0,1.14831664]
[1756147052301,0.00014353,112670.0,112660.0,1.29839664]
[1756147052502,0.00014353,112670.0,112660.0,1.30039664]